bitfinex-derivatives/quotes_BTCF0:USTF0_20250609
["timestamp","ask_amount","ask_price","bid_price","bid_amount"]
[1749479500987,2.2918185,107690.0,107680.0,0.48308598]
[1749479501289,0.1856875,107650.0,107640.0,0.32946653]
[1749479501488,0.54797688,107650.0,107640.0,0.25425647]
[1749479501695,1.08573688,107650.0,107640.0,0.32705647]
[1749479501890,0.72493688,107650.0,107640.0,0.61995442]
[1749479502091,0.72493688,107650.0,107640.0,0.61425442]
[1749479502303,0.00148938,107650.0,107640.0,0.80897738]
[1749479502494,0.53854469,107650.0,107640.0,1.24957738]
[1749479502693,0.00013961,107660.0,107650.0,0.1856875]
[1749479502887,0.185653,107670.0,107660.0,0.2785017]
[1749479503102,0.723453,107670.0,107660.0,0.59244126]
[1749479503403,0.66230947,107680.0,107670.0,0.185653]
[1749479503597,0.66230947,107680.0,107670.0,0.38037596]
[1749479503792,2.70032787,107690.0,107680.0,0.1856357]
[1749479504101,2.70032787,107690.0,107680.0,0.00074469]
[1749479504102,2.91225215,107690.0,107680.0,0.00074469]
[1749479504590,3.27305215,107690.0,107680.0,0.15961675]
[1749479506306,3.27505215,107690.0,107680.0,0.09361675]
[1749479507202,3.27705215,107690.0,107680.0,0.09361675]
[1749479507402,3.47177511,107690.0,107680.0,0.09361675]
[1749479507606,2.13803104,107690.0,107680.0,0.09361675]
[1749479508109,1.31260408,107690.0,107680.0,0.09361675]
[1749479508405,1.41632408,107690.0,107680.0,0.09361675]
[1749479508603,1.31260408,107690.0,107680.0,0.09361675]
[1749479508799,1.85052408,107690.0,107680.0,0.16121675]
[1749479509001,1.85092408,107690.0,107680.0,0.16121675]
[1749479509201,0.82184408,107690.0,107680.0,0.34685255]
[1749479509398,1.28962408,107690.0,107680.0,0.41825255]
[1749479509803,1.29002408,107690.0,107680.0,0.41825255]
[1749479510195,0.75214408,107690.0,107680.0,0.41825255]
[1749479510398,0.92922408,107690.0,107680.0,0.41825255]
[1749479511105,0.93328068,107690.0,107680.0,0.41825255]
[1749479511399,0.93328068,107690.0,107680.0,0.34685255]
[1749479511605,1.42888068,107690.0,107680.0,0.34685255]
[1749479511810,1.42888068,107690.0,107680.0,0.16121675]
[1749479512003,1.62360364,107690.0,107680.0,0.09361675]
[1749479512206,1.71646764,107690.0,107680.0,0.09361675]
[1749479512505,0.89100068,107690.0,107680.0,0.27925255]
[1749479512808,1.42888068,107690.0,107680.0,0.09361675]
[1749479512996,1.58268068,107690.0,107680.0,0.27925255]
[1749479513198,1.58308068,107690.0,107680.0,0.27925255]
[1749479513599,1.04520068,107690.0,107680.0,0.27925255]
[1749479513801,1.58308068,107690.0,107680.0,0.09361675]
[1749479514002,1.58308068,107690.0,107680.0,0.27925255]
[1749479514196,0.45678848,107690.0,107680.0,0.34945255]
[1749479514507,0.99430848,107690.0,107680.0,0.41835255]
[1749479514704,1.35550848,107690.0,107680.0,0.41835255]
[1749479514898,0.99470848,107690.0,107680.0,0.41835255]
[1749479515094,2.85550848,107690.0,107680.0,0.41835255]
[1749479515602,2.92390848,107690.0,107680.0,0.41835255]
[1749479517397,2.92390848,107690.0,107680.0,0.09361675]
[1749479517703,3.18873144,107690.0,107680.0,0.29361675]
[1749479517910,3.25713144,107690.0,107680.0,0.29361675]
[1749479521507,3.25713144,107690.0,107680.0,0.28372868]
[1749479522009,1.84999544,107690.0,107680.0,0.28372868]
[1749479523209,1.31207544,107690.0,107680.0,0.28372868]
[1749479523411,1.75709144,107690.0,107680.0,0.28372868]
[1749479523916,1.84995544,107690.0,107680.0,0.28372868]
[1749479524311,1.35491803,107690.0,107680.0,0.28372868]
[1749479524710,1.06733107,107690.0,107680.0,0.28372868]
[1749479525214,1.56236848,107690.0,107680.0,0.28372868]
[1749479525418,1.49356848,107690.0,107680.0,0.34802868]
[1749479525624,1.49356848,107690.0,107680.0,0.41242868]
[1749479525815,1.53687211,107690.0,107680.0,0.41242868]
[1749479527023,0.81758848,107690.0,107680.0,0.59806428]
[1749479527311,1.35546848,107690.0,107680.0,0.48152868]
[1749479527517,1.35506848,107690.0,107680.0,0.66716428]
[1749479527718,1.35546848,107690.0,107680.0,0.66716428]
[1749479529414,0.92130848,107690.0,107680.0,0.66716428]
[1749479529607,1.35546848,107690.0,107680.0,0.66716428]
[1749479530109,0.99458848,107690.0,107680.0,0.66716428]
[1749479530310,1.35538848,107690.0,107680.0,0.66716428]
[1749479530718,0.99458848,107690.0,107680.0,0.66716428]
[1749479531113,0.99418848,107690.0,107680.0,0.66716428]
[1749479531313,2.49454848,107690.0,107680.0,0.66716428]
[1749479531821,2.49454848,107690.0,107680.0,0.48152868]
[1749479532010,3.05007144,107690.0,107680.0,0.34802868]
[1749479532215,3.11377144,107690.0,107680.0,0.34802868]
[1749479532415,2.98444848,107690.0,107680.0,0.34802868]
[1749479532918,1.95638848,107690.0,107680.0,0.60116448]
[1749479533117,2.85494848,107690.0,107680.0,0.66976448]
[1749479533714,2.31758848,107690.0,107680.0,0.48412868]
[1749479533915,3.04967144,107690.0,107680.0,0.41662868]
[1749479534215,3.11547144,107690.0,107680.0,0.28372868]
[1749479534415,2.92074848,107690.0,107680.0,0.34852868]
[1749479534620,2.98444848,107690.0,107680.0,0.34852868]
[1749479534922,2.98444848,107690.0,107680.0,0.41602868]
[1749479535625,2.44668848,107690.0,107680.0,0.41602868]
[1749479535923,2.98444848,107690.0,107680.0,0.41677337]
[1749479540529,2.98444848,107690.0,107680.0,0.48207337]
[1749479541224,2.85530848,107690.0,107680.0,0.66770917]
[1749479541431,1.35490848,107690.0,107680.0,0.66770917]
[1749479541723,0.81758848,107690.0,107680.0,0.66770917]
[1749479541929,1.35490848,107690.0,107680.0,0.66770917]
[1749479542229,0.11695628,107690.0,107680.0,1.02850917]
[1749479542432,0.83989478,107690.0,107680.0,1.02850917]
[1749479542632,0.83989478,107690.0,107680.0,1.22323213]
[1749479542633,0.11695628,107690.0,107680.0,1.22323213]
[1749479542831,0.54977628,107690.0,107680.0,1.22323213]
[1749479543025,0.5417766,107690.0,107680.0,1.22323213]
[1749479543324,0.5421766,107690.0,107680.0,1.22323213]
[1749479543731,0.1080966,107690.0,107680.0,1.22323213]
[1749479543930,0.54181699,107690.0,107680.0,1.22323213]
[1749479544232,0.57162341,107690.0,107680.0,1.22323213]
[1749479544431,0.12250815,107690.0,107680.0,1.36585984]
[1749479544628,0.00413699,107690.0,107680.0,1.36585984]
[1749479544827,0.43857699,107690.0,107680.0,1.7118369]
[1749479545035,0.43327307,107690.0,107680.0,1.90655986]
[1749479545236,0.43367307,107690.0,107680.0,1.90655986]
[1749479545739,0.43772967,107690.0,107680.0,1.90655986]
[1749479546041,0.43779962,107690.0,107680.0,1.90655986]
[1749479546240,0.43779962,107690.0,107680.0,1.65655986]
[1749479546935,0.46819499,107690.0,107680.0,1.65655986]
[1749479547136,0.43779962,107690.0,107680.0,1.79988025]
[1749479547337,0.43779962,107690.0,107680.0,1.65655986]
[1749479547538,0.0463917,107720.0,107680.0,1.86423884]
[1749479547732,0.21577815,107720.0,107710.0,0.74110686]
[1749479547945,0.3355839,107730.0,107720.0,0.1855667]
[1749479548138,0.2319181,107740.0,107730.0,0.1855495]
[1749479548442,0.6659181,107740.0,107730.0,0.44667246]
[1749479548640,0.00046782,107740.0,107730.0,1.12164849]
[1749479548845,0.2782085,107780.0,107770.0,0.1854808]
[1749479549046,0.2782085,107780.0,107770.0,0.38020376]
[1749479549237,0.8162485,107780.0,107770.0,0.3159808]
[1749479549445,1.25165263,107780.0,107770.0,0.3159808]
[1749479549641,0.89125263,107780.0,107770.0,0.3159808]
[1749479549847,0.35368505,107780.0,107770.0,0.6035241]
[1749479550039,0.35628505,107780.0,107770.0,0.9643241]
[1749479550236,0.80198015,107780.0,107770.0,0.9643241]
[1749479550440,0.80198015,107780.0,107770.0,0.76960114]
[1749479550441,0.18853602,107780.0,107770.0,0.76960114]
[1749479550750,0.72693602,107780.0,107770.0,0.76960114]
[1749479550951,1.08733602,107780.0,107770.0,0.22332034]
[1749479551252,0.72853602,107780.0,107770.0,0.22332034]
[1749479551444,1.15813602,107780.0,107770.0,0.22332034]
[1749479551641,1.11913602,107780.0,107770.0,0.22332034]
[1749479551845,1.18673602,107780.0,107770.0,0.15692034]
[1749479552348,1.38145898,107780.0,107770.0,0.09282034]
[1749479552538,1.18673602,107780.0,107770.0,0.09282034]
[1749479552744,1.18680752,107780.0,107770.0,0.09282034]
[1749479552947,1.21657308,107780.0,107770.0,0.09282034]
[1749479553540,1.48498665,107780.0,107770.0,0.09282034]
[1749479553741,0.1854807,107770.0,107760.0,0.00013961]
[1749479553955,0.87350366,107770.0,107760.0,0.00013961]
[1749479554452,0.1855324,107740.0,107730.0,7.603e-05]
[1749479554652,0.2783638,107720.0,107710.0,0.185584]
[1749479554847,0.54192,107720.0,107710.0,0.185584]
[1749479555045,0.2970476,107730.0,107720.0,0.1855668]
[1749479555250,0.7740276,107730.0,107720.0,0.38028976]
[1749479555544,1.50008007,107730.0,107720.0,0.35739986]
[1749479555751,2.22778977,107730.0,107720.0,1.042977]
[1749479555946,1.50008007,107730.0,107720.0,1.042977]
[1749479556144,1.08866977,107730.0,107720.0,0.16272034]
[1749479556352,1.08866977,107730.0,107720.0,0.09482034]
[1749479556652,1.08978977,107730.0,107720.0,0.28038724]
[1749479556850,1.08978977,107730.0,107720.0,0.34858724]
[1749479557649,1.08978977,107730.0,107720.0,0.36106492]
[1749479557851,0.72898977,107730.0,107720.0,0.42915395]
[1749479558053,8.007e-05,107730.0,107720.0,0.78048724]
[1749479558253,0.72882967,107730.0,107720.0,0.9752102]
[1749479558450,0.72882967,107730.0,107720.0,0.9732102]
[1749479558655,8.007e-05,107730.0,107720.0,0.9762102]
[1749479558852,0.44020007,107730.0,107720.0,0.9762102]
[1749479559252,0.44020007,107730.0,107720.0,0.9732102]
[1749479559556,0.44012007,107730.0,107720.0,1.0680422]
[1749479560346,0.43996007,107730.0,107720.0,1.0680422]
[1749479560755,0.62550967,107730.0,107720.0,1.0680422]
[1749479561853,0.62550967,107730.0,107720.0,0.9752102]
[1749479562656,0.62550967,107730.0,107720.0,1.1752102]
[1749479563358,0.62550967,107730.0,107720.0,0.98048724]
[1749479564858,0.18562967,107730.0,107720.0,0.98048724]
[1749479565057,0.98562967,107730.0,107720.0,0.61968724]
[1749479565450,1.12022967,107730.0,107720.0,0.61968724]
[1749479565758,1.12022967,107730.0,107720.0,0.48338724]
[1749479567460,0.54564007,107730.0,107720.0,1.0389102]
[1749479567654,8.007e-05,107730.0,107720.0,1.1724102]
[1749479567857,0.54576007,107730.0,107720.0,1.1724102]
[1749479568053,0.73130957,107730.0,107720.0,0.97768724]
[1749479568253,0.73170957,107730.0,107720.0,0.97768724]
[1749479568655,0.86480957,107730.0,107720.0,0.97768724]
[1749479568855,0.86480957,107730.0,107720.0,0.9781837]
[1749479569055,0.86480957,107730.0,107720.0,0.97843193]
[1749479569970,1.22560957,107730.0,107720.0,0.48413193]
[1749479570855,1.22560957,107730.0,107720.0,0.29856503]
[1749479571058,1.22966617,107730.0,107720.0,0.48413193]
[1749479571248,1.22966617,107730.0,107720.0,0.29856503]
[1749479571454,1.22966617,107730.0,107720.0,0.48413193]
[1749479571654,1.22966617,107730.0,107720.0,0.31107591]
[1749479571861,1.22062277,107730.0,107720.0,0.31108605]
[1749479572063,1.22062277,107730.0,107720.0,0.4966741]
[1749479572368,1.22062277,107730.0,107720.0,0.31111141]
[1749479572663,1.22062277,107730.0,107720.0,0.48413183]
[1749479572861,1.22071401,107730.0,107720.0,0.49674533]
[1749479573061,1.38335734,107730.0,107720.0,0.48413183]
[1749479573458,1.38335734,107730.0,107720.0,0.29856503]
[1749479573658,1.38335734,107730.0,107720.0,0.48413183]
[1749479573861,1.38335734,107730.0,107720.0,0.49670889]
[1749479574060,1.38335734,107730.0,107720.0,0.49673929]
[1749479574463,1.38335734,107730.0,107720.0,0.49673916]
[1749479574658,1.38335734,107730.0,107720.0,0.3111723]
[1749479574963,1.5780803,107730.0,107720.0,0.29856503]
[1749479575167,1.5780803,107730.0,107720.0,0.31117826]
[1749479575364,1.5780803,107730.0,107720.0,0.29856503]
[1749479575559,1.5780803,107730.0,107720.0,0.31118154]
[1749479575864,1.5780803,107730.0,107720.0,0.29856503]
[1749479576066,1.5780803,107730.0,107720.0,0.31118671]
[1749479576268,1.5780803,107730.0,107720.0,0.31118672]
[1749479576562,1.5780803,107730.0,107720.0,0.31118678]
[1749479576767,1.5780803,107730.0,107720.0,0.29856503]
[1749479577968,1.5780803,107730.0,107720.0,0.31124055]
[1749479578560,1.38255734,107730.0,107720.0,0.48413193]
[1749479578775,1.38255734,107730.0,107720.0,0.49680779]
[1749479578965,1.38255734,107730.0,107720.0,0.49678701]
[1749479579164,1.38255734,107730.0,107720.0,0.48413193]
[1749479579469,0.80227734,107730.0,107720.0,0.4967233]
[1749479579663,0.80227734,107730.0,107720.0,1.0576233]
[1749479579664,0.73437734,107730.0,107720.0,1.0576233]
[1749479579859,0.73437734,107730.0,107720.0,1.04503193]
[1749479580062,0.73397734,107730.0,107720.0,0.69681953]
[1749479580263,0.55049734,107730.0,107720.0,0.68423193]
[1749479580564,1.07966497,107730.0,107720.0,0.69685917]
[1749479580770,1.07966497,107730.0,107720.0,0.69687248]
[1749479581065,1.07966497,107730.0,107720.0,0.69684512]
[1749479581568,1.07966497,107730.0,107720.0,0.68423193]
[1749479581772,0.27234162,107730.0,107720.0,0.69684201]
[1749479582071,0.70950162,107730.0,107720.0,0.68423193]
[1749479582370,0.70990162,107730.0,107720.0,0.68423193]
[1749479583073,0.00454784,107730.0,107720.0,1.23975489]
[1749479583262,0.44166784,107730.0,107720.0,1.38306967]
[1749479583464,0.44126784,107730.0,107720.0,1.38306967]
[1749479583770,0.10689961,107740.0,107730.0,0.1855496]
[1749479583969,0.54401961,107740.0,107730.0,0.86987256]
[1749479584169,0.00013961,107740.0,107730.0,0.86987256]
[1749479584468,0.8205458,107760.0,107750.0,0.1855152]
[1749479584469,0.653058,107760.0,107750.0,0.1855152]
[1749479584674,0.292258,107760.0,107750.0,0.74103816]
[1749479584973,0.54411071,107760.0,107750.0,0.86983816]
[1749479585164,0.54451071,107760.0,107750.0,0.96264127]
[1749479585472,0.72960871,107760.0,107750.0,0.96264127]
[1749479585663,0.54439071,107760.0,107750.0,0.96264127]
[1749479586165,0.73188871,107760.0,107750.0,0.96264127]
[1749479586361,0.73188871,107760.0,107750.0,0.76791831]
[1749479586669,0.73288871,107760.0,107750.0,0.76791831]
[1749479587476,0.85978871,107760.0,107750.0,0.76791831]
[1749479587664,0.85978871,107760.0,107750.0,0.70171831]
[1749479588158,0.67670871,107760.0,107750.0,0.27831831]
[1749479588571,1.41735167,107760.0,107750.0,0.09280311]
[1749479588964,1.22262871,107760.0,107750.0,0.09280311]
[1749479589165,0.86182871,107760.0,107750.0,0.27831831]
[1749479589373,1.22262871,107760.0,107750.0,0.09280311]
[1749479589671,0.86182871,107760.0,107750.0,0.09280311]
[1749479589973,1.22262871,107760.0,107750.0,0.09280311]
[1749479590168,1.66435168,107760.0,107750.0,0.09280311]
[1749479590370,1.70749219,107760.0,107750.0,0.09280311]
[1749479590765,1.95749219,107760.0,107750.0,0.09280311]
[1749479591172,1.95749219,107760.0,107750.0,0.00950311]
[1749479592169,1.95749219,107760.0,107720.0,0.31363619]
[1749479592170,0.2005811,107750.0,107720.0,0.31363619]
[1749479592369,0.5504062,107730.0,107720.0,0.34558529]
[1749479592572,0.5353342,107730.0,107720.0,0.34558529]
[1749479592875,0.6702342,107730.0,107720.0,0.3456146]
[1749479593075,0.6702342,107730.0,107720.0,0.5456146]
[1749479593276,0.6702342,107730.0,107720.0,0.5476146]
[1749479593476,0.6702342,107730.0,107720.0,0.5496146]
[1749479593674,0.6702342,107730.0,107720.0,0.5496147]
[1749479593866,0.6702342,107730.0,107720.0,0.3640478]
[1749479594068,0.86495716,107730.0,107720.0,0.3620478]
[1749479594366,0.6702342,107730.0,107720.0,0.3640478]
[1749479594963,0.6703493,107730.0,107720.0,0.3640478]
[1749479595578,0.86507226,107730.0,107720.0,0.3640478]
[1749479596176,0.86507226,107730.0,107720.0,0.2975478]
[1749479596570,1.01927226,107730.0,107720.0,0.27568069]
[1749479596967,2.51927226,107730.0,107720.0,0.27568069]
[1749479597171,2.3396213,107730.0,107720.0,0.27568069]
[1749479597370,1.0242213,107730.0,107720.0,0.46124749]
[1749479597576,1.3854213,107730.0,107720.0,0.47708069]
[1749479598471,0.8400213,107730.0,107720.0,0.47708069]
[1749479598672,1.3854213,107730.0,107720.0,0.66264759]
[1749479598874,0.8400213,107730.0,107720.0,0.66264759]
[1749479599074,1.3855813,107730.0,107720.0,0.66264759]
[1749479599272,0.8400213,107730.0,107720.0,0.66264759]
[1749479599473,0.7356413,107730.0,107720.0,0.66264759]
[1749479600079,0.7352413,107730.0,107720.0,0.66264759]
[1749479600281,0.7356413,107730.0,107720.0,0.66264759]
[1749479600475,1.0964413,107730.0,107720.0,0.66264759]
[1749479601274,0.5509213,107730.0,107720.0,0.66264759]
[1749479601582,1.0961213,107730.0,107720.0,0.66264759]
[1749479601775,1.0965213,107730.0,107720.0,0.66264759]
[1749479602369,0.1901213,107730.0,107720.0,0.66264759]
[1749479602577,0.7355613,107730.0,107720.0,1.21817055]
[1749479602880,0.7355213,107730.0,107720.0,0.47708069]
[1749479603081,1.0963213,107730.0,107720.0,0.47708069]
[1749479603280,1.1623213,107730.0,107720.0,0.40858069]
[1749479603472,1.42104426,107730.0,107720.0,0.34198069]
[1749479604477,1.57524426,107730.0,107720.0,0.34198069]
[1749479605990,1.57524426,107730.0,107720.0,0.27568069]
[1749479606475,1.56619967,107730.0,107720.0,0.27568069]
[1749479606871,1.58526914,107730.0,107720.0,0.28826041]
[1749479607472,1.58526914,107730.0,107720.0,0.28824936]
[1749479607680,1.67810114,107730.0,107720.0,0.28825838]
[1749479607878,1.67810114,107730.0,107720.0,0.25207501]
[1749479608184,1.67810114,107730.0,107720.0,0.2646627]
[1749479608387,1.67810114,107730.0,107720.0,0.26466269]
[1749479608588,1.67810114,107730.0,107720.0,0.25207501]
[1749479608977,1.67810114,107730.0,107720.0,0.26459553]
[1749479609285,0.1856186,107690.0,107680.0,0.34417526]
[1749479609474,0.71522257,107690.0,107680.0,0.1283]
[1749479609877,0.71522257,107690.0,107680.0,0.40676476]
[1749479610281,0.71522257,107690.0,107680.0,0.22112896]
[1749479610484,0.90994553,107690.0,107680.0,0.09282896]
[1749479610691,1.44198694,107690.0,107680.0,0.15492896]
[1749479610894,1.43595569,107690.0,107680.0,0.15492896]
[1749479611394,1.45467911,107690.0,107680.0,0.15492896]
[1749479611587,1.60887911,107690.0,107680.0,0.16092896]
[1749479611774,1.68424464,107690.0,107680.0,0.16792896]
[1749479611979,1.77710864,107690.0,107680.0,0.10582896]
[1749479612184,0.1856875,107650.0,107640.0,0.6393488]
[1749479612384,0.73173688,107650.0,107640.0,0.81058665]
[1749479612586,0.73173688,107650.0,107640.0,0.90345009]
[1749479613091,0.72673688,107650.0,107640.0,0.90345009]
[1749479613287,0.10649961,107660.0,107650.0,0.1856875]
[1749479613487,0.54287958,107660.0,107650.0,0.86899984]
[1749479613682,0.44117958,107660.0,107650.0,0.86899984]
[1749479613882,0.44117958,107660.0,107650.0,0.96189779]
[1749479614392,2.04484,107660.0,107650.0,0.96189779]
[1749479614785,2.2305104,107660.0,107650.0,0.96717483]
[1749479614990,2.2301104,107660.0,107650.0,0.96717483]
[1749479615193,2.2299504,107660.0,107650.0,0.96717483]
[1749479615489,1.6856704,107660.0,107650.0,1.16189779]
[1749479615697,2.04468,107660.0,107650.0,1.16189779]
[1749479615879,1.6078,107660.0,107650.0,1.16189779]
[1749479616085,2.04736,107660.0,107650.0,1.16189779]
[1749479616383,0.44128,107660.0,107650.0,1.16189779]
[1749479616584,0.37373423,107690.0,107680.0,0.1856358]
[1749479616784,2.46438073,107690.0,107680.0,0.1856358]
[1749479616995,1.96654843,107690.0,107680.0,0.31598049]
[1749479617296,2.51134843,107690.0,107680.0,0.40884393]
[1749479618395,2.51234843,107690.0,107680.0,0.40884393]
[1749479618593,1.93512773,107690.0,107680.0,0.76964393]
[1749479618793,1.93512773,107690.0,107680.0,0.96436689]
[1749479618794,1.82772773,107690.0,107680.0,0.96436689]
[1749479618994,2.37740773,107690.0,107680.0,0.96436689]
[1749479619195,2.37780773,107690.0,107680.0,0.96436689]
[1749479619396,2.37780773,107690.0,107680.0,0.76964393]
[1749479619590,0.84384107,107690.0,107680.0,0.76964393]
[1749479620099,0.11413027,107690.0,107680.0,0.76964393]
[1749479620288,0.84386887,107690.0,107680.0,0.76964393]
[1749479620490,0.65785027,107690.0,107680.0,0.96436689]
[1749479620691,0.84355858,107690.0,107680.0,0.96436689]
[1749479620891,0.83855858,107690.0,107680.0,0.76964393]
[1749479621393,0.83795858,107690.0,107680.0,0.78229354]
[1749479621586,1.19875858,107690.0,107680.0,0.42251924]
[1749479621787,1.19875858,107690.0,107680.0,0.41084393]
[1749479621991,1.19875858,107690.0,107680.0,0.42363226]
[1749479622191,0.83795858,107690.0,107680.0,0.42367086]
[1749479622387,1.19875858,107690.0,107680.0,0.41084393]
[1749479622588,1.39348154,107690.0,107680.0,0.23800411]
[1749479622793,1.39348154,107690.0,107680.0,0.42267039]
[1749479622996,1.61728154,107690.0,107680.0,0.23705774]
[1749479623198,1.68218154,107690.0,107680.0,0.22420813]
[1749479623403,1.48745858,107690.0,107680.0,0.42253055]
[1749479623593,1.48745858,107690.0,107680.0,0.42253506]
[1749479623805,1.48745858,107690.0,107680.0,0.42153335]
[1749479624002,1.48945858,107690.0,107680.0,0.40884403]
[1749479624196,1.48945858,107690.0,107680.0,0.22320813]
[1749479624396,1.49245858,107690.0,107680.0,0.23589341]
[1749479624607,1.49245858,107690.0,107680.0,0.42153052]
[1749479624804,1.68718154,107690.0,107680.0,0.09360813]
[1749479625014,1.74828154,107690.0,107680.0,0.09360813]
[1749479625308,1.74828154,107690.0,107680.0,0.09171456]
[1749479625607,1.79066973,107690.0,107680.0,0.29171456]
[1749479625908,1.78463724,107690.0,107680.0,0.29189912]
[1749479626202,1.78463724,107690.0,107680.0,0.29189934]
[1749479626399,1.78463724,107690.0,107680.0,0.29191459]
[1749479626599,1.77558838,107690.0,107680.0,0.29191459]
[1749479626800,1.77558838,107690.0,107680.0,0.29198002]
[1749479627310,1.7943605,107690.0,107680.0,0.29198002]
[1749479627606,1.7943605,107690.0,107680.0,0.29192016]
[1749479627996,1.7943605,107690.0,107680.0,0.27882195]
[1749479628193,1.7943605,107690.0,107680.0,0.29192169]
[1749479628406,1.7943605,107690.0,107680.0,0.27882195]
[1749479628605,1.7939205,107690.0,107680.0,0.29186194]
[1749479628808,1.75109231,107690.0,107680.0,0.29186194]
[1749479628999,1.75069231,107690.0,107680.0,0.27882195]
[1749479629310,1.75109231,107690.0,107680.0,0.27882195]
[1749479629507,1.75109231,107690.0,107680.0,0.29174008]
[1749479629702,1.75109231,107690.0,107680.0,0.29174015]
[1749479629908,1.75514891,107690.0,107680.0,0.29174701]
[1749479630109,1.75514891,107690.0,107680.0,0.29175163]
[1749479630299,1.75514891,107690.0,107680.0,0.29177023]
[1749479631005,1.75514891,107690.0,107680.0,0.29178533]
[1749479631201,1.79768298,107690.0,107680.0,0.29178538]
[1749479631405,1.79768298,107690.0,107680.0,0.27882195]
[1749479631599,1.79768298,107690.0,107680.0,0.29179121]
[1749479631807,1.79768298,107690.0,107680.0,0.29183796]
[1749479632002,1.79768298,107690.0,107680.0,0.27882195]
[1749479632204,1.79768298,107690.0,107680.0,0.29187427]
[1749479632400,0.99862002,107690.0,107680.0,0.29187427]
[1749479632602,1.71789086,107690.0,107680.0,0.27882195]
[1749479632807,1.71789086,107690.0,107680.0,0.29182706]
[1749479633009,1.67495679,107690.0,107680.0,0.35662706]
[1749479633210,1.67535679,107690.0,107680.0,0.34362195]
[1749479633506,1.71793577,107690.0,107680.0,0.35644579]
[1749479634004,0.84739281,107690.0,107680.0,0.35644579]
[1749479634311,1.34809383,107690.0,107680.0,0.54208169]
[1749479634504,1.54241679,107690.0,107680.0,0.35644579]
[1749479634705,1.66851679,107690.0,107680.0,0.35644579]
[1749479634901,1.71111301,107690.0,107680.0,0.34362195]
[1749479635510,1.71111301,107690.0,107680.0,0.35645495]
[1749479635708,0.84741005,107690.0,107680.0,0.54209075]
[1749479635909,1.54261679,107690.0,107680.0,0.67469075]
[1749479636308,0.99953679,107690.0,107680.0,0.66185775]
[1749479636509,1.58516508,107690.0,107680.0,0.48901024]
[1749479636704,1.54253679,107690.0,107680.0,0.47622195]
[1749479636906,1.54253679,107690.0,107680.0,0.48902528]
[1749479637209,1.54253679,107690.0,107680.0,0.47622195]
[1749479637413,1.17252991,107690.0,107680.0,0.67466895]
[1749479637615,1.17248991,107690.0,107680.0,0.67466895]
[1749479637805,1.17248991,107690.0,107680.0,0.67450066]
[1749479637806,0.62968991,107690.0,107680.0,0.67450066]
[1749479638006,0.09514835,107690.0,107680.0,1.02265785]
[1749479638211,0.63794835,107690.0,107680.0,1.02265785]
[1749479638410,0.66835499,107690.0,107680.0,1.02265785]
[1749479638717,0.66875499,107690.0,107680.0,0.66185785]
[1749479639011,0.85429359,107690.0,107680.0,0.66185785]
[1749479639313,0.85429359,107690.0,107680.0,1.02265785]
[1749479639508,0.66867499,107690.0,107680.0,1.02265785]
[1749479640213,0.85429359,107690.0,107680.0,1.02265785]
[1749479640404,0.66883499,107690.0,107680.0,1.02265785]
[1749479640606,0.85445359,107690.0,107680.0,1.02265785]
[1749479640807,0.85445359,107690.0,107680.0,0.66185785]
[1749479641208,0.31157359,107690.0,107680.0,0.66185785]
[1749479641411,1.04913655,107690.0,107680.0,0.47622195]
[1749479641621,1.47253655,107690.0,107680.0,0.34362195]
[1749479641800,1.53603655,107690.0,107680.0,0.34362195]
[1749479642007,1.69023655,107690.0,107680.0,0.27882195]
[1749479642209,1.7329021,107690.0,107680.0,0.29147384]
[1749479642509,1.7329021,107690.0,107680.0,0.29158737]
[1749479642709,1.7329021,107690.0,107680.0,0.29161671]
[1749479643219,1.7329021,107690.0,107680.0,0.2916185]
[1749479643511,1.7329021,107690.0,107680.0,0.24149754]
[1749479643717,1.75190273,107690.0,107680.0,0.22882669]
[1749479643912,1.7329021,107690.0,107680.0,0.24149755]
[1749479644218,1.77616883,107690.0,107680.0,0.15906992]
[1749479644519,3.27616883,107690.0,107680.0,0.26471643]
[1749479644719,3.27616883,107690.0,107680.0,0.26474296]
[1749479644907,3.27616883,107690.0,107680.0,0.25193336]
[1749479645418,3.27616883,107690.0,107680.0,0.26474259]
[1749479645620,3.27616883,107690.0,107680.0,0.25193336]
[1749479645918,3.27616883,107690.0,107680.0,0.26474989]
[1749479646118,2.83912883,107690.0,107680.0,0.24675203]
[1749479646328,3.27568883,107690.0,107680.0,0.23675203]
[1749479646506,3.27568883,107690.0,107680.0,0.22467805]
[1749479646711,3.2696563,107690.0,107680.0,0.23765618]
[1749479646914,3.2696563,107690.0,107680.0,0.23764728]
[1749479647220,3.2696563,107690.0,107680.0,0.22467805]
[1749479647517,2.71824753,107690.0,107680.0,0.23764692]
[1749479647725,3.2174208,107690.0,107680.0,0.23758024]
[1749479647918,3.2170208,107690.0,107680.0,0.23758024]
[1749479648117,3.2170208,107690.0,107680.0,0.22467805]
[1749479648317,3.2174208,107690.0,107680.0,0.22467805]
[1749479648824,3.2174208,107690.0,107680.0,0.23746149]
[1749479649017,3.2170208,107690.0,107680.0,0.22467805]
[1749479649218,3.2170208,107690.0,107680.0,0.23746149]
[1749479649219,3.2174208,107690.0,107680.0,0.23746149]
[1749479649725,3.2174208,107690.0,107680.0,0.22467805]
[1749479651121,2.6749808,107690.0,107680.0,0.22467805]
[1749479651323,2.6749808,107690.0,107680.0,0.41877805]
[1749479651521,3.2166208,107690.0,107680.0,0.60441385]
[1749479651716,1.7170208,107690.0,107680.0,0.41877805]
[1749479652122,0.41249924,107690.0,107680.0,0.60441395]
[1749479652324,0.99173229,107690.0,107680.0,0.60441395]
[1749479652618,0.99133229,107690.0,107680.0,0.60441395]
[1749479652816,0.99173229,107690.0,107680.0,0.60441395]
[1749479653125,0.45069229,107690.0,107680.0,0.96521395]
[1749479653318,0.80603369,107690.0,107680.0,0.60441395]
[1749479653516,0.26507369,107690.0,107680.0,0.60441395]
[1749479653720,0.99161229,107690.0,107680.0,0.60441395]
[1749479654518,0.80599369,107690.0,107680.0,0.60441395]
[1749479655318,0.99161229,107690.0,107680.0,0.96521395]
[1749479655718,0.26507369,107690.0,107680.0,0.96521395]
[1749479655924,0.65119369,107690.0,107680.0,0.96521395]
[1749479656122,0.11047369,107690.0,107680.0,0.96521395]
[1749479656424,0.83677229,107690.0,107680.0,0.96521395]
[1749479656617,0.83717229,107690.0,107680.0,0.96521395]
[1749479657425,0.65155369,107690.0,107680.0,0.96521395]
[1749479657724,0.65139369,107690.0,107680.0,0.96521395]
[1749479657923,0.65099369,107690.0,107680.0,0.96521395]
[1749479658126,0.11087369,107690.0,107680.0,0.96521395]
[1749479658316,0.65135369,107690.0,107680.0,0.96521395]
[1749479658517,0.65095369,107690.0,107680.0,0.96521395]
[1749479658717,0.65135369,107690.0,107680.0,0.96521395]
[1749479658918,0.65135369,107690.0,107680.0,1.10852873]
[1749479659319,0.65135369,107690.0,107680.0,0.96521395]
[1749479660027,0.83697229,107690.0,107680.0,0.96521395]
[1749479661726,0.73169229,107690.0,107680.0,1.05807795]
[1749479662026,0.29649229,107690.0,107680.0,1.05807795]
[1749479662227,0.73165229,107690.0,107680.0,1.20139273]
[1749479663831,0.54603369,107690.0,107680.0,1.20139273]
[1749479664234,0.11087369,107690.0,107680.0,1.20139273]